[Event "Titled Tuesday Blitz July 6 2021"]
[White "Alekseenko, Kirill"]
[Black "Nguyen, Quoc Hy"]
[WhiteFideId "4135539"]
[BlackFideId "12410853"]
[WhiteElo "2580"]
[BlackElo "1975"]
[Result "0-1"]
[Round "06"]
[TimeControl "180+1"]
[Date "2021.07.06"]
[WhiteClock "0:00:13"]
[BlackClock "0:00:07"]

1. d4 {[%clk 0:03:00]}  d5 {[%clk 0:02:54]} 2. Nc3 {[%clk 0:03:01]}  Bf5 {[%clk 0:02:50]} 3. Bf4 {[%clk 0:03:00]}  Nf6 {[%clk 0:02:48]} 4. f3 {[%clk 0:02:58]}  e6 {[%clk 0:02:46]} 5. g4 {[%clk 0:02:58]}  Bg6 {[%clk 0:02:46]} 6. h4 {[%clk 0:02:59]}  h5 {[%clk 0:02:27]} 7. g5 {[%clk 0:02:59]}  Nfd7 {[%clk 0:02:27]} 8. e4 {[%clk 0:02:59]}  Bb4 {[%clk 0:02:02]} 9. Bd3 {[%clk 0:02:58]}  O-O {[%clk 0:01:55]} 10. Ne2 {[%clk 0:02:58]}  c5 {[%clk 0:01:54]} 11. exd5 {[%clk 0:02:31]}  cxd4 {[%clk 0:01:39]} 12. a3 {[%clk 0:02:10]}  Ba5 {[%clk 0:01:10]} 13. b4 {[%clk 0:02:10]}  dxc3 {[%clk 0:01:08]} 14. bxa5 {[%clk 0:02:08]}  Bxd3 {[%clk 0:01:05]} 15. Qxd3 {[%clk 0:02:07]}  Nc5 {[%clk 0:00:50]} 16. Qxc3 {[%clk 0:02:02]}  Nba6 {[%clk 0:00:50]} 17. d6 {[%clk 0:01:50]}  Rc8 {[%clk 0:00:48]} 18. Qd2 {[%clk 0:01:50]}  Re8 {[%clk 0:00:44]} 19. O-O {[%clk 0:01:46]}  e5 {[%clk 0:00:44]} 20. Bh2 {[%clk 0:01:44]}  Rc6 {[%clk 0:00:41]} 21. Rad1 {[%clk 0:01:42]}  Re6 {[%clk 0:00:41]} 22. Qe3 {[%clk 0:01:41]}  Rcxd6 {[%clk 0:00:39]} 23. Rxd6 {[%clk 0:01:40]}  Qxd6 {[%clk 0:00:39]} 24. Ng3 {[%clk 0:01:31]}  Qd4 {[%clk 0:00:33]} 25. Qxd4 {[%clk 0:01:31]}  exd4 {[%clk 0:00:33]} 26. Nxh5 {[%clk 0:01:27]}  Re2 {[%clk 0:00:33]} 27. Rd1 {[%clk 0:01:24]}  Ne6 {[%clk 0:00:31]} 28. Nf4 {[%clk 0:01:14]}  Rxh2 {[%clk 0:00:27]} 29. Nxe6 {[%clk 0:01:13]}  Rxc2 {[%clk 0:00:26]} 30. Nxd4 {[%clk 0:01:11]}  Rc5 {[%clk 0:00:23]} 31. Rb1 {[%clk 0:01:05]}  Rd5 {[%clk 0:00:15]} 32. Ne2 {[%clk 0:01:04]}  Rxa5 {[%clk 0:00:14]} 33. Rxb7 {[%clk 0:01:04]}  Nc5 {[%clk 0:00:15]} 34. Rb8+ {[%clk 0:01:03]}  Kh7 {[%clk 0:00:15]} 35. Rc8 {[%clk 0:00:44]}  Nb3 {[%clk 0:00:15]} 36. f4 {[%clk 0:00:39]}  Rxa3 {[%clk 0:00:15]} 37. Rc7 {[%clk 0:00:39]}  Kg6 {[%clk 0:00:14]} 38. Ng3 {[%clk 0:00:40]}  Nd4 {[%clk 0:00:14]} 39. h5+ {[%clk 0:00:38]}  Kh7 {[%clk 0:00:14]} 40. Ne4 {[%clk 0:00:33]}  Ne2+ {[%clk 0:00:12]} 41. Kf2 {[%clk 0:00:29]}  Nxf4 {[%clk 0:00:13]} 42. Rxf7 {[%clk 0:00:25]}  Nxh5 {[%clk 0:00:13]} 43. Rb7 {[%clk 0:00:25]}  a5 {[%clk 0:00:12]} 44. Ra7 {[%clk 0:00:26]}  a4 {[%clk 0:00:12]} 45. Ra6 {[%clk 0:00:26]}  Nf4 {[%clk 0:00:10]} 46. Ng3 {[%clk 0:00:26]}  Ra2+ {[%clk 0:00:09]} 47. Kf3 {[%clk 0:00:25]}  Ng6 {[%clk 0:00:09]} 48. Nf5 {[%clk 0:00:23]}  Ra1 {[%clk 0:00:09]} 49. Ra7 {[%clk 0:00:19]}  Rf1+ {[%clk 0:00:09]} 50. Kg4 {[%clk 0:00:15]}  Rf4+ {[%clk 0:00:09]} 51. Kh5 {[%clk 0:00:15]}  Rxf5 {[%clk 0:00:10]} 52. Ra8 {[%clk 0:00:13]}  Rf4 {[%clk 0:00:07]} 53. Ra5 {[%clk 0:00:13]}  Rh4# {[%clk 0:00:07]} 0-1


[Site "https://www.chess.com"]

[Event "Titled Tuesday Blitz July 6 2021"]
[White "Assaubayeva, Bibisara"]
[Black "Afanasiev, Nikita"]
[WhiteFideId "13708694"]
[BlackFideId "24183555"]
[WhiteElo "2232"]
[BlackElo "2521"]
[Result "1-0"]
[Round "06"]
[TimeControl "180+1"]
[Date "2021.07.06"]
[WhiteClock "0:00:07"]
[BlackClock "0:00:02"]

1. d4 {[%clk 0:03:00]}  Nf6 {[%clk 0:02:57]} 2. c4 {[%clk 0:02:58]}  c5 {[%clk 0:02:57]} 3. d5 {[%clk 0:02:58]}  g6 {[%clk 0:02:58]} 4. Nc3 {[%clk 0:02:58]}  Bg7 {[%clk 0:02:58]} 5. e4 {[%clk 0:02:57]}  d6 {[%clk 0:02:58]} 6. h3 {[%clk 0:02:56]}  O-O {[%clk 0:02:58]} 7. Nf3 {[%clk 0:02:57]}  e6 {[%clk 0:02:59]} 8. Bd3 {[%clk 0:02:57]}  Re8 {[%clk 0:02:59]} 9. Be3 {[%clk 0:02:55]}  Na6 {[%clk 0:02:57]} 10. Qd2 {[%clk 0:02:46]}  Nc7 {[%clk 0:02:57]} 11. a4 {[%clk 0:02:42]}  Na6 {[%clk 0:02:54]} 12. Rd1 {[%clk 0:02:37]}  e5 {[%clk 0:02:49]} 13. g4 {[%clk 0:02:28]}  h5 {[%clk 0:02:47]} 14. g5 {[%clk 0:02:04]}  Nh7 {[%clk 0:02:45]} 15. Ng1 {[%clk 0:02:00]}  f6 {[%clk 0:02:30]} 16. gxf6 {[%clk 0:01:51]}  Qxf6 {[%clk 0:02:29]} 17. Nge2 {[%clk 0:01:48]}  h4 {[%clk 0:02:24]} 18. f4 {[%clk 0:01:27]}  Nb4 {[%clk 0:02:20]} 19. Bb1 {[%clk 0:01:13]}  Rf8 {[%clk 0:02:16]} 20. fxe5 {[%clk 0:00:51]}  Qf3 {[%clk 0:02:08]} 21. Rg1 {[%clk 0:00:51]}  Bxe5 {[%clk 0:02:04]} 22. Bh6 {[%clk 0:00:35]}  Bxh3 {[%clk 0:02:03]} 23. Qe3 {[%clk 0:00:18]}  Qxe3 {[%clk 0:01:51]} 24. Bxe3 {[%clk 0:00:19]}  Kg7 {[%clk 0:01:50]} 25. Kd2 {[%clk 0:00:18]}  Rf3 {[%clk 0:01:49]} 26. Rh1 {[%clk 0:00:17]}  g5 {[%clk 0:01:39]} 27. Ng1 {[%clk 0:00:16]}  Rxe3 {[%clk 0:01:33]} 28. Kxe3 {[%clk 0:00:08]}  Bg2 {[%clk 0:01:33]} 29. Nf3 {[%clk 0:00:08]}  Bf4+ {[%clk 0:01:31]} 30. Ke2 {[%clk 0:00:06]}  Rf8 {[%clk 0:01:22]} 31. Rhg1 {[%clk 0:00:04]}  Bxf3+ {[%clk 0:01:21]} 32. Kxf3 {[%clk 0:00:05]}  Nf6 {[%clk 0:01:15]} 33. e5 {[%clk 0:00:04]}  dxe5 {[%clk 0:01:10]} 34. Ne4 {[%clk 0:00:04]}  Nh5 {[%clk 0:00:58]} 35. Ke2 {[%clk 0:00:03]}  Bg3 {[%clk 0:00:54]} 36. Nxg5 {[%clk 0:00:03]}  Nf4+ {[%clk 0:00:54]} 37. Ke3 {[%clk 0:00:03]}  Kh6 {[%clk 0:00:44]} 38. Ne4 {[%clk 0:00:03]}  Bh2 {[%clk 0:00:36]} 39. Rg4 {[%clk 0:00:03]}  Kh5 {[%clk 0:00:33]} 40. Rg5+ {[%clk 0:00:04]}  Kh6 {[%clk 0:00:33]} 41. Rh1 {[%clk 0:00:05]}  Nh3 {[%clk 0:00:23]} 42. Rxh2 {[%clk 0:00:04]}  Nxg5 {[%clk 0:00:22]} 43. Rxh4+ {[%clk 0:00:05]}  Kg6 {[%clk 0:00:21]} 44. Rg4 {[%clk 0:00:05]}  Rf3+ {[%clk 0:00:09]} 45. Kd2 {[%clk 0:00:05]}  Rb3 {[%clk 0:00:10]} 46. Rxg5+ {[%clk 0:00:05]}  Kh6 {[%clk 0:00:09]} 47. Kc1 {[%clk 0:00:04]}  Rh3 {[%clk 0:00:07]} 48. Rxe5 {[%clk 0:00:03]}  Rh1+ {[%clk 0:00:06]} 49. Kd2 {[%clk 0:00:03]}  Rxb1 {[%clk 0:00:07]} 50. Nxc5 {[%clk 0:00:03]}  Na2 {[%clk 0:00:05]} 51. Kc2 {[%clk 0:00:03]}  Rg1 {[%clk 0:00:04]} 52. Re6+ {[%clk 0:00:04]}  Kg7 {[%clk 0:00:02]} 53. Nxb7 {[%clk 0:00:05]}  Nb4+ {[%clk 0:00:01]} 54. Kc3 {[%clk 0:00:05]}  a5 {[%clk 0:00:02]} 55. Nxa5 {[%clk 0:00:05]}  Na2+ {[%clk 0:00:02]} 56. Kd4 {[%clk 0:00:05]}  Rd1+ {[%clk 0:00:01]} 57. Kc5 {[%clk 0:00:05]}  Kf7 {[%clk 0:00:02]} 58. Nc6 {[%clk 0:00:04]}  Nc1 {[%clk 0:00:02]} 59. b4 {[%clk 0:00:05]}  Nb3+ {[%clk 0:00:02]} 60. Kb6 {[%clk 0:00:05]}  Rb1 {[%clk 0:00:01]} 61. a5 {[%clk 0:00:05]}  Nd2 {[%clk 0:00:01]} 62. Re7+ {[%clk 0:00:06]}  Kf6 {[%clk 0:00:01]} 63. c5 {[%clk 0:00:06]}  Kf5 {[%clk 0:00:02]} 64. Kc7 {[%clk 0:00:06]}  Nc4 {[%clk 0:00:01]} 65. d6 {[%clk 0:00:07]}  Kf4 {[%clk 0:00:02]} 66. d7 {[%clk 0:00:07]} 1-0


[Site "https://www.chess.com"]

[Event "Titled Tuesday Blitz July 6 2021"]
[White "Bilych, Olexiy"]
[Black "Maghsoodloo, Parham"]
[WhiteFideId "14156504"]
[BlackFideId "12539929"]
[WhiteElo "2246"]
[BlackElo "2601"]
[Result "0-1"]
[Round "06"]
[TimeControl "180+1"]
[Date "2021.07.06"]
[WhiteClock "0:00:11"]
[BlackClock "0:00:34"]

1. d4 {[%clk 0:03:00]}  Nf6 {[%clk 0:02:59]} 2. c4 {[%clk 0:02:56]}  e6 {[%clk 0:02:59]} 3. Nf3 {[%clk 0:02:55]}  d5 {[%clk 0:02:59]} 4. g3 {[%clk 0:02:56]}  Be7 {[%clk 0:02:58]} 5. Bg2 {[%clk 0:02:56]}  O-O {[%clk 0:02:58]} 6. O-O {[%clk 0:02:56]}  dxc4 {[%clk 0:02:55]} 7. Ne5 {[%clk 0:02:56]}  a5 {[%clk 0:02:51]} 8. Na3 {[%clk 0:02:46]}  a4 {[%clk 0:02:50]} 9. Naxc4 {[%clk 0:02:44]}  Ra6 {[%clk 0:02:45]} 10. Bf4 {[%clk 0:02:25]}  Nd5 {[%clk 0:02:43]} 11. Rc1 {[%clk 0:02:22]}  b5 {[%clk 0:02:41]} 12. Ne3 {[%clk 0:02:18]}  Nxf4 {[%clk 0:02:41]} 13. gxf4 {[%clk 0:02:19]}  Rd6 {[%clk 0:02:41]} 14. d5 {[%clk 0:02:04]}  exd5 {[%clk 0:02:11]} 15. Nxd5 {[%clk 0:02:02]}  c6 {[%clk 0:01:50]} 16. Nxc6 {[%clk 0:01:41]}  Nxc6 {[%clk 0:01:43]} 17. Rxc6 {[%clk 0:01:40]}  Rxc6 {[%clk 0:01:42]} 18. Nxe7+ {[%clk 0:01:40]}  Qxe7 {[%clk 0:01:41]} 19. Bxc6 {[%clk 0:01:41]}  Qf6 {[%clk 0:01:41]} 20. Qd5 {[%clk 0:01:17]}  Qxb2 {[%clk 0:01:23]} 21. Qxb5 {[%clk 0:01:03]}  Qxa2 {[%clk 0:01:20]} 22. Bd5 {[%clk 0:01:00]}  Qd2 {[%clk 0:01:17]} 23. Ra1 {[%clk 0:00:46]}  Bh3 {[%clk 0:01:12]} 24. Bg2 {[%clk 0:00:35]}  Bd7 {[%clk 0:01:07]} 25. Qd5 {[%clk 0:00:30]}  Qb2 {[%clk 0:01:05]} 26. Qa2 {[%clk 0:00:26]}  Qf6 {[%clk 0:00:49]} 27. e3 {[%clk 0:00:21]}  Rb8 {[%clk 0:00:48]} 28. Rd1 {[%clk 0:00:18]}  Be8 {[%clk 0:00:48]} 29. Rd2 {[%clk 0:00:16]}  h6 {[%clk 0:00:45]} 30. Bd5 {[%clk 0:00:15]}  Qc3 {[%clk 0:00:44]} 31. Qc2 {[%clk 0:00:12]}  Qa5 {[%clk 0:00:36]} 32. Ba2 {[%clk 0:00:12]}  a3 {[%clk 0:00:34]} 33. Qc4 {[%clk 0:00:11]}  Qxd2 {[%clk 0:00:34]} 0-1


[Site "https://www.chess.com"]

[Event "Titled Tuesday Blitz July 6 2021"]
[White "Costachi, Mihnea"]
[Black "Kubatko, Ivan"]
[WhiteFideId "1217518"]
[BlackFideId "24111473"]
[WhiteElo "2482"]
[BlackElo "2285"]
[Result "1-0"]
[Round "06"]
[TimeControl "180+1"]
[Date "2021.07.06"]
[WhiteClock "0:00:55"]
[BlackClock "0:00:02"]

1. d4 {[%clk 0:02:59]}  d5 {[%clk 0:02:59]} 2. c4 {[%clk 0:02:58]}  e6 {[%clk 0:02:59]} 3. Nc3 {[%clk 0:02:58]}  c5 {[%clk 0:02:59]} 4. cxd5 {[%clk 0:02:58]}  cxd4 {[%clk 0:02:59]} 5. Qa4+ {[%clk 0:02:57]}  Bd7 {[%clk 0:02:59]} 6. Qxd4 {[%clk 0:02:58]}  exd5 {[%clk 0:03:00]} 7. Qxd5 {[%clk 0:02:57]}  Nc6 {[%clk 0:03:00]} 8. Nf3 {[%clk 0:02:56]}  Nf6 {[%clk 0:03:00]} 9. Qb3 {[%clk 0:02:57]}  Bc5 {[%clk 0:03:00]} 10. g3 {[%clk 0:02:55]}  Ng4 {[%clk 0:02:38]} 11. e3 {[%clk 0:02:51]}  Nge5 {[%clk 0:02:34]} 12. Be2 {[%clk 0:02:37]}  Bh3 {[%clk 0:01:48]} 13. Nxe5 {[%clk 0:02:34]}  Nxe5 {[%clk 0:01:48]} 14. Qb5+ {[%clk 0:02:30]}  Nd7 {[%clk 0:01:47]} 15. Ne4 {[%clk 0:02:30]}  Be7 {[%clk 0:00:52]} 16. Qh5 {[%clk 0:02:26]}  Bg2 {[%clk 0:00:47]} 17. Bf3 {[%clk 0:02:16]}  g6 {[%clk 0:00:41]} 18. Qg4 {[%clk 0:02:09]}  f5 {[%clk 0:00:39]} 19. Qf4 {[%clk 0:02:09]}  Bxf3 {[%clk 0:00:36]} 20. Qxf3 {[%clk 0:02:06]}  fxe4 {[%clk 0:00:37]} 21. Qxe4 {[%clk 0:02:07]}  Nc5 {[%clk 0:00:33]} 22. Qc4 {[%clk 0:01:59]}  a6 {[%clk 0:00:30]} 23. O-O {[%clk 0:01:59]}  b5 {[%clk 0:00:29]} 24. Qf4 {[%clk 0:01:56]}  Rf8 {[%clk 0:00:23]} 25. Qh6 {[%clk 0:01:55]}  Qd5 {[%clk 0:00:18]} 26. e4 {[%clk 0:01:46]}  Nxe4 {[%clk 0:00:17]} 27. Qxh7 {[%clk 0:01:40]}  Qf7 {[%clk 0:00:14]} 28. Qh3 {[%clk 0:01:34]}  Qf5 {[%clk 0:00:14]} 29. Qg2 {[%clk 0:01:33]}  Qf3 {[%clk 0:00:13]} 30. Be3 {[%clk 0:01:25]}  Qxg2+ {[%clk 0:00:13]} 31. Kxg2 {[%clk 0:01:26]}  O-O-O {[%clk 0:00:14]} 32. Rac1+ {[%clk 0:01:25]}  Kb7 {[%clk 0:00:14]} 33. f3 {[%clk 0:01:25]}  Nd2 {[%clk 0:00:14]} 34. Rf2 {[%clk 0:01:19]}  Nc4 {[%clk 0:00:14]} 35. Bh6 {[%clk 0:01:19]}  Rf7 {[%clk 0:00:13]} 36. b3 {[%clk 0:01:19]}  Nb6 {[%clk 0:00:13]} 37. Re1 {[%clk 0:01:16]}  Bc5 {[%clk 0:00:12]} 38. Rfe2 {[%clk 0:01:15]}  Rfd7 {[%clk 0:00:12]} 39. Re6 {[%clk 0:01:14]}  Rd6 {[%clk 0:00:12]} 40. h4 {[%clk 0:01:13]}  Rxe6 {[%clk 0:00:12]} 41. Rxe6 {[%clk 0:01:14]}  Rd6 {[%clk 0:00:12]} 42. Re7+ {[%clk 0:01:14]}  Kc6 {[%clk 0:00:12]} 43. Bf4 {[%clk 0:01:13]}  Rd1 {[%clk 0:00:09]} 44. Re6+ {[%clk 0:01:10]}  Kb7 {[%clk 0:00:09]} 45. Rxg6 {[%clk 0:01:11]}  Nd5 {[%clk 0:00:09]} 46. Bg5 {[%clk 0:01:07]}  Be3 {[%clk 0:00:08]} 47. f4 {[%clk 0:01:06]}  Rd2+ {[%clk 0:00:06]} 48. Kf3 {[%clk 0:01:06]}  Bg1 {[%clk 0:00:05]} 49. a4 {[%clk 0:01:04]}  bxa4 {[%clk 0:00:05]} 50. bxa4 {[%clk 0:01:05]}  Nc3 {[%clk 0:00:05]} 51. h5 {[%clk 0:01:04]}  Rd3+ {[%clk 0:00:05]} 52. Kg4 {[%clk 0:01:03]}  Bf2 {[%clk 0:00:05]} 53. Bh4 {[%clk 0:01:04]}  Ne4 {[%clk 0:00:06]} 54. h6 {[%clk 0:01:03]}  Bxg3 {[%clk 0:00:04]} 55. h7 {[%clk 0:01:02]}  Nf2+ {[%clk 0:00:03]} 56. Kh5 {[%clk 0:00:59]}  Rd5+ {[%clk 0:00:03]} 57. Bg5 {[%clk 0:00:59]}  Bxf4 {[%clk 0:00:03]} 58. Rg7+ {[%clk 0:00:58]}  Kc6 {[%clk 0:00:03]} 59. h8=Q {[%clk 0:00:59]}  Bxg5 {[%clk 0:00:03]} 60. Qa8+ {[%clk 0:00:58]}  Kc5 {[%clk 0:00:03]} 61. Qa7+ {[%clk 0:00:57]}  Kc4 {[%clk 0:00:02]} 62. Qxa6+ {[%clk 0:00:56]}  Kb3 {[%clk 0:00:03]} 63. Rxg5 {[%clk 0:00:55]}  Rxg5+ {[%clk 0:00:02]} 64. Kxg5 {[%clk 0:00:55]} 1-0


[Site "https://www.chess.com"]

[Event "Titled Tuesday Blitz July 6 2021"]
[White "Deepan Chakkravarthy J."]
[Black "Salem, A.R. Saleh"]
[WhiteFideId "5011132"]
[BlackFideId "9301348"]
[WhiteElo "2490"]
[BlackElo "2642"]
[Result "1/2-1/2"]
[Round "06"]
[TimeControl "180+1"]
[Date "2021.07.06"]
[WhiteClock "0:00:05"]
[BlackClock "0:00:06"]

1. e4 {[%clk 0:03:00]}  c5 {[%clk 0:03:00]} 2. Nf3 {[%clk 0:03:00]}  d6 {[%clk 0:03:00]} 3. d4 {[%clk 0:03:01]}  cxd4 {[%clk 0:03:01]} 4. Nxd4 {[%clk 0:03:02]}  Nf6 {[%clk 0:03:02]} 5. Nc3 {[%clk 0:03:02]}  a6 {[%clk 0:03:03]} 6. Nb3 {[%clk 0:03:01]}  e6 {[%clk 0:02:55]} 7. g4 {[%clk 0:02:52]}  h6 {[%clk 0:02:56]} 8. h4 {[%clk 0:02:50]}  b5 {[%clk 0:02:56]} 9. f3 {[%clk 0:02:19]}  b4 {[%clk 0:02:52]} 10. Ne2 {[%clk 0:02:18]}  Nc6 {[%clk 0:02:44]} 11. Be3 {[%clk 0:02:13]}  d5 {[%clk 0:02:43]} 12. exd5 {[%clk 0:02:02]}  Nxd5 {[%clk 0:02:41]} 13. Bf2 {[%clk 0:02:03]}  Be7 {[%clk 0:02:36]} 14. Qd2 {[%clk 0:01:57]}  O-O {[%clk 0:02:34]} 15. Ned4 {[%clk 0:01:50]}  Nxd4 {[%clk 0:02:25]} 16. Nxd4 {[%clk 0:01:51]}  Bd6 {[%clk 0:02:26]} 17. Bd3 {[%clk 0:01:44]}  Bb7 {[%clk 0:02:22]} 18. Ne2 {[%clk 0:01:40]}  Qf6 {[%clk 0:02:20]} 19. Be4 {[%clk 0:01:31]}  Qxb2 {[%clk 0:02:17]} 20. Bd4 {[%clk 0:01:14]}  Qa3 {[%clk 0:02:16]} 21. h5 {[%clk 0:00:54]}  Rad8 {[%clk 0:02:04]} 22. g5 {[%clk 0:00:52]}  e5 {[%clk 0:01:11]} 23. gxh6 {[%clk 0:00:51]}  Nf4 {[%clk 0:01:04]} 24. Nxf4 {[%clk 0:00:27]}  Bxe4 {[%clk 0:01:01]} 25. fxe4 {[%clk 0:00:16]}  exd4 {[%clk 0:00:54]} 26. Nd3 {[%clk 0:00:15]}  Qc3 {[%clk 0:00:40]} 27. Qxc3 {[%clk 0:00:15]}  bxc3 {[%clk 0:00:36]} 28. hxg7 {[%clk 0:00:15]}  Rfe8 {[%clk 0:00:36]} 29. Nf2 {[%clk 0:00:15]}  Kxg7 {[%clk 0:00:35]} 30. Ke2 {[%clk 0:00:15]}  Rb8 {[%clk 0:00:34]} 31. Rag1+ {[%clk 0:00:15]}  Kh8 {[%clk 0:00:34]} 32. Kd3 {[%clk 0:00:15]}  Rb2 {[%clk 0:00:33]} 33. Ng4 {[%clk 0:00:15]}  f5 {[%clk 0:00:19]} 34. exf5 {[%clk 0:00:13]}  Rb5 {[%clk 0:00:20]} 35. Nf6 {[%clk 0:00:12]}  Rf8 {[%clk 0:00:11]} 36. Rg6 {[%clk 0:00:12]}  Rxf5 {[%clk 0:00:11]} 37. Ne4 {[%clk 0:00:11]}  Bf4 {[%clk 0:00:07]} 38. Rhg1 {[%clk 0:00:09]}  Be3 {[%clk 0:00:07]} 39. h6 {[%clk 0:00:07]}  Bxg1 {[%clk 0:00:07]} 40. Rxg1 {[%clk 0:00:06]}  Rf4 {[%clk 0:00:07]} 41. Rg6 {[%clk 0:00:06]}  Re8 {[%clk 0:00:07]} 42. Nf6 {[%clk 0:00:06]}  Re3+ {[%clk 0:00:07]} 43. Kc4 {[%clk 0:00:05]}  d3+ {[%clk 0:00:07]} 44. Kxc3 {[%clk 0:00:05]}  dxc2+ {[%clk 0:00:08]} 45. Kxc2 {[%clk 0:00:05]}  Rf2+ {[%clk 0:00:07]} 46. Kd1 {[%clk 0:00:05]}  Rxf6 {[%clk 0:00:05]} 47. Rxf6 {[%clk 0:00:04]}  Ra3 {[%clk 0:00:06]} 48. Rf2 {[%clk 0:00:03]}  Kh7 {[%clk 0:00:07]} 49. Rh2 {[%clk 0:00:03]}  Ra4 {[%clk 0:00:04]} 50. Kc1 {[%clk 0:00:04]}  Rf4 {[%clk 0:00:04]} 51. Kb2 {[%clk 0:00:04]}  Rf6 {[%clk 0:00:04]} 52. Kb3 {[%clk 0:00:05]}  Rf5 {[%clk 0:00:05]} 53. Kb4 {[%clk 0:00:05]}  Rb5+ {[%clk 0:00:05]} 54. Kc4 {[%clk 0:00:05]}  Ra5 {[%clk 0:00:05]} 55. Kb4 {[%clk 0:00:05]}  Rb5+ {[%clk 0:00:06]} 56. Kc4 {[%clk 0:00:05]}  Ra5 {[%clk 0:00:06]} 57. Kb4 {[%clk 0:00:05]}  Rb5+ {[%clk 0:00:06]} 1/2-1/2


[Site "https://www.chess.com"]

[Event "Titled Tuesday Blitz July 6 2021"]
[White "Dzhaparov, Medet"]
[Black "Villegas, Pierre"]
[WhiteFideId "13803689"]
[BlackFideId "654183"]
[WhiteElo "1702"]
[BlackElo "2411"]
[Result "0-1"]
[Round "06"]
[TimeControl "180+1"]
[Date "2021.07.06"]
[WhiteClock "0:00:05"]
[BlackClock "0:00:31"]

1. d4 {[%clk 0:03:00]}  d5 {[%clk 0:02:58]} 2. c4 {[%clk 0:03:01]}  e6 {[%clk 0:02:58]} 3. Nc3 {[%clk 0:03:01]}  a6 {[%clk 0:02:58]} 4. cxd5 {[%clk 0:03:00]}  exd5 {[%clk 0:02:59]} 5. Nf3 {[%clk 0:03:01]}  Nf6 {[%clk 0:02:58]} 6. Bg5 {[%clk 0:03:01]}  Be6 {[%clk 0:02:58]} 7. e3 {[%clk 0:03:01]}  Nbd7 {[%clk 0:02:58]} 8. Bd3 {[%clk 0:03:01]}  Bd6 {[%clk 0:02:59]} 9. Qc2 {[%clk 0:02:55]}  h6 {[%clk 0:02:53]} 10. Bf4 {[%clk 0:02:55]}  Qe7 {[%clk 0:02:52]} 11. O-O {[%clk 0:02:53]}  O-O {[%clk 0:02:52]} 12. h3 {[%clk 0:02:47]}  Rfe8 {[%clk 0:02:46]} 13. a3 {[%clk 0:02:23]}  Rac8 {[%clk 0:02:33]} 14. b4 {[%clk 0:02:21]}  b5 {[%clk 0:02:33]} 15. Nd2 {[%clk 0:02:14]}  Nb6 {[%clk 0:02:28]} 16. Nb3 {[%clk 0:02:08]}  Bxf4 {[%clk 0:02:15]} 17. exf4 {[%clk 0:02:07]}  Qd6 {[%clk 0:02:16]} 18. f5 {[%clk 0:01:15]}  Bd7 {[%clk 0:02:15]} 19. Nc5 {[%clk 0:01:14]}  Nc4 {[%clk 0:02:11]} 20. g3 {[%clk 0:01:04]}  Re7 {[%clk 0:01:40]} 21. a4 {[%clk 0:00:42]}  Rce8 {[%clk 0:01:38]} 22. axb5 {[%clk 0:00:39]}  axb5 {[%clk 0:01:39]} 23. Kg2 {[%clk 0:00:25]}  Nh5 {[%clk 0:01:22]} 24. Bxc4 {[%clk 0:00:17]}  dxc4 {[%clk 0:01:17]} 25. Rad1 {[%clk 0:00:14]}  Nf6 {[%clk 0:00:42]} 26. d5 {[%clk 0:00:14]}  Re5 {[%clk 0:00:40]} 27. g4 {[%clk 0:00:15]}  Nxd5 {[%clk 0:00:35]} 28. Nxd5 {[%clk 0:00:09]}  Rxd5 {[%clk 0:00:36]} 29. f3 {[%clk 0:00:07]}  Bc6 {[%clk 0:00:33]} 30. Rde1 {[%clk 0:00:05]}  Rd2+ {[%clk 0:00:31]} 0-1


[Site "https://www.chess.com"]

[Event "Titled Tuesday Blitz July 6 2021"]
[White "Espinosa Veloz, Ermes"]
[Black "Travadon, Loic"]
[WhiteFideId "3507424"]
[BlackFideId "26092131"]
[WhiteElo "2333"]
[BlackElo "2095"]
[Result "1-0"]
[Round "06"]
[TimeControl "180+1"]
[Date "2021.07.06"]
[WhiteClock "0:01:20"]
[BlackClock "0:02:32"]

1. e4 {[%clk 0:03:00]}  g6 {[%clk 0:03:00]} 2. d4 {[%clk 0:03:00]}  Bg7 {[%clk 0:03:01]} 3. Nc3 {[%clk 0:03:00]}  d6 {[%clk 0:03:02]} 4. Be3 {[%clk 0:03:01]}  e6 {[%clk 0:03:02]} 5. h3 {[%clk 0:03:01]}  Ne7 {[%clk 0:03:03]} 6. Nf3 {[%clk 0:03:00]}  a6 {[%clk 0:03:03]} 7. a4 {[%clk 0:02:57]}  b6 {[%clk 0:03:03]} 8. Qd2 {[%clk 0:02:56]}  h6 {[%clk 0:03:04]} 9. Bd3 {[%clk 0:02:54]}  Bb7 {[%clk 0:03:04]} 10. O-O {[%clk 0:02:52]}  Nd7 {[%clk 0:03:04]} 11. Rfe1 {[%clk 0:02:48]}  Kf8 {[%clk 0:03:03]} 12. Nh2 {[%clk 0:02:38]}  Nc6 {[%clk 0:03:00]} 13. d5 {[%clk 0:02:36]}  Nce5 {[%clk 0:02:59]} 14. Bf1 {[%clk 0:02:36]}  exd5 {[%clk 0:02:58]} 15. exd5 {[%clk 0:02:35]}  Nf6 {[%clk 0:02:57]} 16. f4 {[%clk 0:02:16]}  Ned7 {[%clk 0:02:57]} 17. Bd4 {[%clk 0:02:15]}  a5 {[%clk 0:02:47]} 18. Bb5 {[%clk 0:02:11]}  Nc5 {[%clk 0:02:48]} 19. Re2 {[%clk 0:02:00]}  Qc8 {[%clk 0:02:47]} 20. Rae1 {[%clk 0:01:57]}  Qf5 {[%clk 0:02:45]} 21. g4 {[%clk 0:01:55]}  Qc8 {[%clk 0:02:45]} 22. Re7 {[%clk 0:01:52]}  Kg8 {[%clk 0:02:44]} 23. Bxf6 {[%clk 0:01:47]}  Bxf6 {[%clk 0:02:44]} 24. Re8+ {[%clk 0:01:47]}  Qxe8 {[%clk 0:02:44]} 25. Rxe8+ {[%clk 0:01:48]}  Rxe8 {[%clk 0:02:44]} 26. Bxe8 {[%clk 0:01:49]}  Kg7 {[%clk 0:02:44]} 27. Bb5 {[%clk 0:01:48]}  g5 {[%clk 0:02:41]} 28. Nf1 {[%clk 0:01:45]}  gxf4 {[%clk 0:02:40]} 29. Qxf4 {[%clk 0:01:44]}  Be5 {[%clk 0:02:39]} 30. Qf3 {[%clk 0:01:41]}  Bc8 {[%clk 0:02:38]} 31. Ng3 {[%clk 0:01:39]}  Rg8 {[%clk 0:02:38]} 32. Nf5+ {[%clk 0:01:37]}  Kh7 {[%clk 0:02:38]} 33. Ne4 {[%clk 0:01:36]}  Nxe4 {[%clk 0:02:36]} 34. Qxe4 {[%clk 0:01:37]}  Bxf5 {[%clk 0:02:36]} 35. Qxf5+ {[%clk 0:01:36]}  Kg7 {[%clk 0:02:37]} 36. Bd3 {[%clk 0:01:36]}  Kf8 {[%clk 0:02:37]} 37. c3 {[%clk 0:01:36]}  Ke7 {[%clk 0:02:36]} 38. Bb5 {[%clk 0:01:35]}  h5 {[%clk 0:02:33]} 39. Qxh5 {[%clk 0:01:33]}  Rh8 {[%clk 0:02:33]} 40. Qf5 {[%clk 0:01:32]}  Rxh3 {[%clk 0:02:34]} 41. Qd7+ {[%clk 0:01:30]}  Kf6 {[%clk 0:02:34]} 42. Qxc7 {[%clk 0:01:28]}  Bf4 {[%clk 0:02:34]} 43. Be8 {[%clk 0:01:25]}  Kg5 {[%clk 0:02:33]} 44. Qxf7 {[%clk 0:01:24]}  Kh4 {[%clk 0:02:33]} 45. Kg2 {[%clk 0:01:22]}  Rh2+ {[%clk 0:02:33]} 46. Kf3 {[%clk 0:01:21]}  Bg3 {[%clk 0:02:32]} 47. Qh5# {[%clk 0:01:20]} 1-0


[Site "https://www.chess.com"]

[Event "Titled Tuesday Blitz July 6 2021"]
[White "Howell, David W L"]
[Black "Khusnutdinov, Rustam"]
[WhiteFideId "410608"]
[BlackFideId "13701703"]
[WhiteElo "2643"]
[BlackElo "2571"]
[Result "1-0"]
[Round "06"]
[TimeControl "180+1"]
[Date "2021.07.06"]
[WhiteClock "0:02:17"]
[BlackClock "0:02:35"]

1. e4 {[%clk 0:03:00]}  e6 {[%clk 0:02:58]} 2. d4 {[%clk 0:02:53]}  d5 {[%clk 0:02:57]} 3. Nc3 {[%clk 0:02:52]}  Nf6 {[%clk 0:02:57]} 4. Bg5 {[%clk 0:02:49]}  Be7 {[%clk 0:02:52]} 5. e5 {[%clk 0:02:48]}  Nfd7 {[%clk 0:02:53]} 6. h4 {[%clk 0:02:49]}  Nc6 {[%clk 0:02:53]} 7. Nf3 {[%clk 0:02:38]}  Nb6 {[%clk 0:02:53]} 8. Bd3 {[%clk 0:02:35]}  Bd7 {[%clk 0:02:52]} 9. a3 {[%clk 0:02:29]}  f6 {[%clk 0:02:52]} 10. exf6 {[%clk 0:02:26]}  gxf6 {[%clk 0:02:52]} 11. Bh6 {[%clk 0:02:23]}  Bd6 {[%clk 0:02:47]} 12. Ng5 {[%clk 0:02:20]}  Qe7 {[%clk 0:02:47]} 13. Qh5+ {[%clk 0:02:19]}  Kd8 {[%clk 0:02:35]} 14. Nf7+ {[%clk 0:02:20]}  Kc8 {[%clk 0:02:35]} 15. Nxh8 {[%clk 0:02:20]}  Be8 {[%clk 0:02:35]} 16. Qg4 {[%clk 0:02:17]} 1-0


[Site "https://www.chess.com"]